[Event "Queens Festival Europe 2022"]
[Site "Tornelo"]
[Date "2022.06.19"]
[Round "9.15"]
[White "Rashidova, Nargiz"]
[Black "Echimescu, Otilia-Elena"]
[Result "1-0"]
[ECO "A48"]
[WhiteElo "1341"]
[BlackElo "1314"]
[Annotator "NA RC"]
[PlyCount "113"]
[EventDate "2022.06.19"]
[EventType "swiss"]
[EventCountry "NET"]
[SourceTitle "playchess.com"]
[Source "ChessBase"]
[SourceQuality "1"]
[TimeControl "180+2"]

1. d4 {[%emt 0:00:02]} d6 {[%emt 0:00:04]} 2. Nf3 {[%emt 0:00:02]} Nf6 {[%emt 0:00:02]} 3. Bf4 {[%emt 0:00:02]} g6 {[%emt 0:00:02]} 4. e3 {[%emt 0:00:01]} Bg7 {[%emt 0:00:02]} 5. Bd3 {[%emt 0:00:02]} O-O {[%emt 0:00:03]} 6. Qd2 {[%emt 0:00:09]} Nbd7 {[%emt 0:00:05]} 7. c3 {[%emt 0:00:06]} Nh5 {[%emt 0:00:04]} 8. Bg3 {[%emt 0:00:03]} Nxg3 {[%emt 0:00:02]} 9. hxg3 {[%emt 0:00:06]} e5 {[%emt 0:00:03]} 10. O-O {[%emt 0:00:08]} Re8 {[%emt 0:00:04]} 11. dxe5 {[%emt 0:00:08]} Nxe5 {[%emt 0:00:04]} 12. Nxe5 {[%emt 0:00:02]} Bxe5 {[%emt 0:00:03]} 13. Na3 {[%emt 0:00:06]} c5 {[%emt 0:00:11]} 14. Nc4 {[%emt 0:00:10]} Bf6 {[%emt 0:00:06]} 15. Be2 {[%emt 0:00:08]} d5 {[%emt 0:00:11]} 16. Na3 {[%emt 0:00:14]} Be6 {[%emt 0:00:10]} 17. Rfd1 {[%emt 0:00:13]} Re7 {[%emt 0:00:09]} 18. e4 {[%emt 0:00:09]} Rd7 {[%emt 0:00:08]} 19. exd5 {[%emt 0:00:08]} Rxd5 {[%emt 0:00:03]} 20. Qf4 {[%emt 0:00:06]} Bg5 {[%emt 0:00:09]} 21. Qf3 {[%emt 0:00:35]} Rxd1+ {[%emt 0:00:05]} 22. Rxd1 {[%emt 0:00:03]} Qf6 {[%emt 0:00:04]} 23. Qxf6 {[%emt 0:00:08]} Bxf6 {[%emt 0:00:02]} 24. Bc4 {[%emt 0:00:06]} Bxc4 {[%emt 0:00:13]} 25. Nxc4 {[%emt 0:00:02]} Rd8 {[%emt 0:00:02]} 26. Rxd8+ {[%emt 0:00:05]} Bxd8 {[%emt 0:00:02]} 27. Nd6 {[%emt 0:00:02]} b6 {[%emt 0:00:04]} 28. Nc8 {[%emt 0:00:03]} a6 {[%emt 0:00:08]} 29. Na7 {[%emt 0:00:05]} Bg5 {[%emt 0:00:05]} 30. Nc8 {[%emt 0:00:06]} Bc1 {[%emt 0:00:04]} 31. Nxb6 {[%emt 0:00:06]} Bxb2 {[%emt 0:00:02]} 32. c4 {[%emt 0:00:02]} Bd4 {[%emt 0:00:09]} 33. a4 {[%emt 0:00:07]} f5 {[%emt 0:00:04]} 34. Nc8 {[%emt 0:00:06]} Kf7 {[%emt 0:00:02]} 35. Nb6 {[%emt 0:00:08]} Ke6 {[%emt 0:00:08]} 36. Nd5 {[%emt 0:00:06]} a5 {[%emt 0:00:05]} 37. Nc7+ {[%emt 0:00:04]} Ke5 {[%emt 0:00:12]} 38. Nb5 {[%emt 0:00:15]} h6 {[%emt 0:00:19]} 39. Kf1 {[%emt 0:00:03]} Ke4 {[%emt 0:00:08]} 40. Ke2 {[%emt 0:00:02]} g5 {[%emt 0:00:10]} 41. f3+ {[%emt 0:00:01]} Ke5 {[%emt 0:00:04]} 42. Kd3 {[%emt 0:00:01]} f4 {[%emt 0:00:03]} 43. g4 {[%emt 0:00:03]} Be3 {[%emt 0:00:07]} 44. Nc7 {[%emt 0:00:03]} Kf6 {[%emt 0:00:06]} 45. Nd5+ {[%emt 0:00:02]} Ke5 {[%emt 0:00:09]} 46. Nxe3 {[%emt 0:00:01]} fxe3 {[%emt 0:00:02]} 47. Kxe3 {[%emt 0:00:01]} Ke6 {[%emt 0:00:03]} 48. g3 {[%emt 0:00:01]} Ke5 {[%emt 0:00:02]} 49. f4+ {[%emt 0:00:02]} Kf6 {[%emt 0:00:02]} 50. Ke4 {[%emt 0:00:02]} Ke6 {[%emt 0:00:02]} 51. f5+ {[%emt 0:00:01]} Kf6 {[%emt 0:00:02]} 52. Kd5 {[%emt 0:00:01]} Ke7 {[%emt 0:00:03]} 53. Kxc5 {[%emt 0:00:01]} Kf6 {[%emt 0:00:02]} 54. Kb6 {[%emt 0:00:01]} Ke5 {[%emt 0:00:02]} 55. c5 {[%emt 0:00:02]} Kf6 {[%emt 0:00:03]} 56. c6 {[%emt 0:00:01]} Ke5 {[%emt 0:00:01]} 57. c7 {[%emt 0:00:02]} 1-0

[Event "Queens Festival Europe 2022"]
[Site "Tornelo"]
[Date "2022.06.19"]
[Round "10.1"]
[White "Amrayeva, Aytan"]
[Black "Ismayil, Malak"]
[Result "0-1"]
[ECO "E32"]
[WhiteElo "2143"]
[BlackElo "2001"]
[Annotator "NA RC"]
[PlyCount "110"]
[EventDate "2022.06.19"]
[EventType "swiss"]
[EventCountry "NET"]
[SourceTitle "playchess.com"]
[Source "ChessBase"]
[SourceQuality "1"]
[TimeControl "180+2"]

1. d4 {[%emt 0:00:02]} Nf6 {[%emt 0:00:05]} 2. c4 {[%emt 0:00:04]} e6 {[%emt 0:00:01]} 3. Nc3 {[%emt 0:00:10]} Bb4 {[%emt 0:00:02]} 4. Qc2 {[%emt 0:00:02]} O-O {[%emt 0:00:02]} 5. Bg5 {[%emt 0:00:06]} h6 {[%emt 0:00:03]} 6. Bh4 {[%emt 0:00:04]} Be7 {[%emt 0:00:05]} 7. e3 {[%emt 0:00:02]} d6 {[%emt 0:00:01]} 8. Bd3 {[%emt 0:00:01]} Nc6 {[%emt 0:00:01]} 9. Nge2 {[%emt 0:00:02]} e5 {[%emt 0:00:02]} 10. a3 {[%emt 0:00:05]} a5 {[%emt 0:00:03]} 11. d5 {[%emt 0:00:02]} Nb8 {[%emt 0:00:02]} 12. O-O-O {[%emt 0:00:03]} Nxd5 {[%emt 0:00:09]} 13. Bxe7 {[%emt 0:00:08]} Nxe7 {[%emt 0:00:01]} 14. g4 {[%emt 0:00:02]} Bxg4 {[%emt 0:00:40]} 15. Rhg1 {[%emt 0:00:05]} Qd7 {[%emt 0:00:02]} 16. Rg3 {[%emt 0:00:13]} f5 {[%emt 0:00:34]} 17. Rdg1 {[%emt 0:00:04]} Rf7 {[%emt 0:00:03]} 18. h3 {[%emt 0:00:17]} Bh5 {[%emt 0:00:05]} 19. c5 {[%emt 0:00:07]} d5 {[%emt 0:00:12]} 20. Bb5 {[%emt 0:00:08]} c6 {[%emt 0:00:02]} 21. Ba4 {[%emt 0:00:01]} Na6 {[%emt 0:00:03]} 22. Nb1 {[%emt 0:00:15]} Nxc5 {[%emt 0:00:15]} 23. Qxc5 {[%emt 0:00:05]} Bxe2 {[%emt 0:00:03]} 24. f4 {[%emt 0:00:02]} e4 {[%emt 0:00:05]} 25. Qd4 {[%emt 0:00:05]} Nc8 {[%emt 0:00:09]} 26. Nc3 {[%emt 0:00:10]} b5 {[%emt 0:00:14]} 27. Nxe2 {[%emt 0:00:51]} bxa4 {[%emt 0:00:01]} 28. Qe5 {[%emt 0:00:05]} Re7 {[%emt 0:00:15]} 29. Qc3 {[%emt 0:00:03]} Nd6 {[%emt 0:00:05]} 30. Nd4 {[%emt 0:00:02]} Ne8 {[%emt 0:00:02]} 31. Kb1 {[%emt 0:00:11]} Rc8 {[%emt 0:00:03]} 32. Qxa5 {[%emt 0:00:03]} c5 {[%emt 0:00:02]} 33. Nb5 {[%emt 0:00:04]} d4 {[%emt 0:00:06]} 34. exd4 {[%emt 0:00:03]} cxd4 {[%emt 0:00:01]} 35. Rd1 {[%emt 0:00:02]} d3 {[%emt 0:00:01]} 36. Nc3 {[%emt 0:00:05]} e3 {[%emt 0:00:08]} 37. Nd5 {[%emt 0:00:04]} e2 {[%emt 0:00:11]} 38. Rdg1 {[%emt 0:00:01]} Rf7 {[%emt 0:00:08]} 39. Rxd3 {[%emt 0:00:03]} Qc6 {[%emt 0:00:02]} 40. Qd2 {[%emt 0:00:04]} Qe6 {[%emt 0:00:03]} 41. Re1 {[%emt 0:00:02]} Nd6 {[%emt 0:00:01]} 42. Rxe2 {[%emt 0:00:02]} Ne4 {[%emt 0:00:01]} 43. Qe1 {[%emt 0:00:06]} Rd7 {[%emt 0:00:02]} 44. Nb4 {[%emt 0:00:05]} Rxd3 {[%emt 0:00:04]} 45. Nxd3 {[%emt 0:00:02]} Qc4 {[%emt 0:00:01]} 46. Nf2 {[%emt 0:00:03]} Nc5 {[%emt 0:00:05]} 47. Re8+ {[%emt 0:00:04]} Rxe8 {[%emt 0:00:03]} 48. Qxe8+ {[%emt 0:00:01]} Kh7 {[%emt 0:00:01]} 49. Qe1 {[%emt 0:00:02]} Qxf4 {[%emt 0:00:03]} 50. Qg1 {[%emt 0:00:05]} Qf3 {[%emt 0:00:02]} 51. h4 {[%emt 0:00:02]} Nb3 {[%emt 0:00:01]} 52. Ka2 {[%emt 0:00:02]} Qd5 {[%emt 0:00:02]} 53. Kb1 {[%emt 0:00:01]} Nd2+ {[%emt 0:00:02]} 54. Ka1 {[%emt 0:00:04]} Nf3 {[%emt 0:00:03]} 55. h5 {[%emt 0:00:02]} Nxg1 {[%emt 0:00:03]} 0-1

[Event "Queens Festival Europe 2022"]
[Site "Tornelo"]
[Date "2022.06.19"]
[Round "10.1"]
[White "Vujcic, Milena"]
[Black "Sava, Ana-Maria"]
[Result "1-0"]
[ECO "B98"]
[WhiteElo "1987"]
[BlackElo "1916"]
[Annotator "NA RC"]
[PlyCount "63"]
[EventDate "2022.06.19"]
[EventType "swiss"]
[EventCountry "NET"]
[SourceTitle "playchess.com"]
[Source "ChessBase"]
[SourceQuality "1"]
[TimeControl "180+2"]

1. e4 {[%emt 0:00:02]} c5 {[%emt 0:00:05]} 2. Nf3 {[%emt 0:00:02]} d6 {[%emt 0:00:02]} 3. d4 {[%emt 0:00:01]} cxd4 {[%emt 0:00:01]} 4. Nxd4 {[%emt 0:00:01]} Nf6 {[%emt 0:00:02]} 5. Nc3 {[%emt 0:00:02]} a6 {[%emt 0:00:02]} 6. Bg5 {[%emt 0:00:01]} h6 {[%emt 0:00:02]} 7. Bh4 {[%emt 0:00:04]} e6 {[%emt 0:00:03]} 8. f4 {[%emt 0:00:05]} Be7 {[%emt 0:00:02]} 9. Qf3 {[%emt 0:00:13]} Nbd7 {[%emt 0:00:11]} 10. O-O-O {[%emt 0:00:06]} Qc7 {[%emt 0:00:19]} 11. Bxf6 {[%emt 0:00:16]} Nxf6 {[%emt 0:00:23]} 12. g4 {[%emt 0:00:03]} Rb8 {[%emt 0:00:10]} 13. h4 {[%emt 0:00:21]} b5 {[%emt 0:00:09]} 14. Bd3 {[%emt 0:00:03]} b4 {[%emt 0:00:04]} 15. Nce2 {[%emt 0:00:06]} Bb7 {[%emt 0:00:04]} 16. g5 {[%emt 0:00:04]} Nd7 {[%emt 0:00:14]} 17. Qh5 {[%emt 0:00:09]} Nc5 {[%emt 0:00:22]} 18. f5 {[%emt 0:00:16]} Nxd3+ {[%emt 0:00:06]} 19. Rxd3 {[%emt 0:00:01]} e5 {[%emt 0:00:11]} 20. Ne6 {[%emt 0:00:05]} Qc4 {[%emt 0:00:12]} 21. Nxg7+ {[%emt 0:00:13]} Kf8 {[%emt 0:00:02]} 22. Ne6+ {[%emt 0:00:42]} Ke8 {[%emt 0:00:33]} 23. g6 {[%emt 0:00:05]} fxg6 {[%emt 0:00:06]} 24. Qxg6+ {[%emt 0:00:03]} Kd7 {[%emt 0:00:01]} 25. Ng3 {[%emt 0:00:38]} Bxe4 {[%emt 0:00:07]} 26. Nxe4 {[%emt 0:00:03]} Rhc8 {[%emt 0:00:04]} 27. N4c5+ {[%emt 0:00:04]} Rxc5 {[%emt 0:00:05]} 28. Nxc5+ {[%emt 0:00:02]} Qxc5 {[%emt 0:00:01]} 29. Qe6+ {[%emt 0:00:01]} Kc6 {[%emt 0:00:03]} 30. Qxe7 {[%emt 0:00:02]} Kb5 {[%emt 0:00:03]} 31. Rhd1 {[%emt 0:00:04]} Rb6 {[%emt 0:00:03]} 32. Rd5 {[%emt 0:00:01]} 1-0

[Event "Queens Festival Europe 2022"]
[Site "Tornelo"]
[Date "2022.06.19"]
[Round "10.1"]
[White "Vicze, Zsofia"]
[Black "Posadas, Rayelynn"]
[Result "1-0"]
[ECO "B38"]
[WhiteElo "1749"]
[BlackElo "1648"]
[Annotator "NA RC"]
[PlyCount "61"]
[EventDate "2022.06.19"]
[EventType "swiss"]
[EventCountry "NET"]
[SourceTitle "playchess.com"]
[Source "ChessBase"]
[SourceQuality "1"]
[TimeControl "180+2"]

1. e4 {[%emt 0:00:02]} c5 {[%emt 0:00:04]} 2. Nf3 {[%emt 0:00:03]} e6 {[%emt 0:00:02]} 3. c4 {[%emt 0:00:03]} Nc6 {[%emt 0:00:02]} 4. Nc3 {[%emt 0:00:02]} a6 {[%emt 0:00:02]} 5. Be2 {[%emt 0:00:01]} Nge7 {[%emt 0:00:01]} 6. O-O {[%emt 0:00:02]} g6 {[%emt 0:00:00]} 7. d4 {[%emt 0:00:02]} cxd4 {[%emt 0:00:05]} 8. Nxd4 {[%emt 0:00:02]} Bg7 {[%emt 0:00:01]} 9. Be3 {[%emt 0:00:01]} O-O {[%emt 0:00:03]} 10. Rc1 {[%emt 0:00:02]} Qc7 {[%emt 0:00:14]} 11. b3 {[%emt 0:00:02]} b6 {[%emt 0:00:06]} 12. f4 {[%emt 0:00:04]} Bb7 {[%emt 0:00:04]} 13. Bf3 {[%emt 0:00:02]} Nxd4 {[%emt 0:00:28]} 14. Bxd4 {[%emt 0:00:02]} Rfd8 {[%emt 0:00:21]} 15. Bxg7 {[%emt 0:00:08]} Kxg7 {[%emt 0:00:02]} 16. g3 {[%emt 0:00:04]} Qc5+ {[%emt 0:00:03]} 17. Kh1 {[%emt 0:00:03]} Nc6 {[%emt 0:00:01]} 18. Qd3 {[%emt 0:00:05]} Nd4 {[%emt 0:00:06]} 19. Bg2 {[%emt 0:00:04]} Rac8 {[%emt 0:00:03]} 20. Rcd1 {[%emt 0:00:02]} Nc6 {[%emt 0:00:09]} 21. Rfe1 {[%emt 0:00:06]} Nb4 {[%emt 0:00:05]} 22. Qd2 {[%emt 0:00:04]} d5 {[%emt 0:00:11]} 23. exd5 {[%emt 0:00:13]} exd5 {[%emt 0:00:02]} 24. Qb2 {[%emt 0:00:02]} Kg8 {[%emt 0:00:17]} 25. a3 {[%emt 0:00:36]} Nc6 {[%emt 0:00:23]} 26. Nxd5 {[%emt 0:00:03]} b5 {[%emt 0:00:23]} 27. Nf6+ {[%emt 0:00:04]} Kf8 {[%emt 0:00:10]} 28. Nxh7+ {[%emt 0:00:03]} Kg8 {[%emt 0:00:02]} 29. Nf6+ {[%emt 0:00:01]} Kf8 {[%emt 0:00:01]} 30. Nd7+ {[%emt 0:00:05]} Rxd7 {[%emt 0:00:03]} 31. Qh8# {[%emt 0:00:04]} 1-0

[Event "Queens Festival Europe 2022"]
[Site "Tornelo"]
[Date "2022.06.19"]
[Round "10.1"]
[White "Catabay, Mae Katelyn Rose"]
[Black "Valiyeva, Asnad"]
[Result "1-0"]
[ECO "B17"]
[WhiteElo "1321"]
[BlackElo "1237"]
[Annotator "NA RC"]
[PlyCount "121"]
[EventDate "2022.06.19"]
[EventType "swiss"]
[EventCountry "NET"]
[SourceTitle "playchess.com"]
[Source "ChessBase"]
[SourceQuality "1"]
[TimeControl "180+2"]

1. e4 {[%emt 0:00:02]} c6 {[%emt 0:00:04]} 2. d4 {[%emt 0:00:03]} d5 {[%emt 0:00:02]} 3. Nc3 {[%emt 0:00:01]} dxe4 {[%emt 0:00:02]} 4. Nxe4 {[%emt 0:00:02]} Nd7 {[%emt 0:00:01]} 5. Nf3 {[%emt 0:00:02]} Ngf6 {[%emt 0:00:02]} 6. Ng3 {[%emt 0:00:02]} Nb6 {[%emt 0:00:02]} 7. Bd3 {[%emt 0:00:03]} Bg4 {[%emt 0:00:02]} 8. c3 {[%emt 0:00:03]} e6 {[%emt 0:00:02]} 9. Be3 {[%emt 0:00:02]} Be7 {[%emt 0:00:01]} 10. O-O {[%emt 0:00:02]} Nbd5 {[%emt 0:00:02]} 11. h3 {[%emt 0:00:05]} Bxf3 {[%emt 0:00:05]} 12. Qxf3 {[%emt 0:00:02]} O-O {[%emt 0:00:05]} 13. a3 {[%emt 0:00:08]} h6 {[%emt 0:00:06]} 14. c4 {[%emt 0:00:03]} Nxe3 {[%emt 0:00:02]} 15. fxe3 {[%emt 0:00:02]} Bd6 {[%emt 0:00:07]} 16. Ne4 {[%emt 0:00:06]} Be7 {[%emt 0:00:08]} 17. Nxf6+ {[%emt 0:00:05]} Bxf6 {[%emt 0:00:01]} 18. Qe4 {[%emt 0:00:02]} g6 {[%emt 0:00:03]} 19. Qg4 {[%emt 0:00:08]} Bg7 {[%emt 0:00:02]} 20. h4 {[%emt 0:00:05]} h5 {[%emt 0:00:04]} 21. Qe4 {[%emt 0:00:04]} Qd7 {[%emt 0:00:05]} 22. Rf2 {[%emt 0:00:02]} f5 {[%emt 0:00:02]} 23. Qf4 {[%emt 0:00:06]} Qe7 {[%emt 0:00:06]} 24. Qg3 {[%emt 0:00:11]} Kh7 {[%emt 0:00:09]} 25. Raf1 {[%emt 0:00:03]} e5 {[%emt 0:00:03]} 26. d5 {[%emt 0:00:12]} e4 {[%emt 0:00:05]} 27. Bb1 {[%emt 0:00:07]} cxd5 {[%emt 0:00:03]} 28. cxd5 {[%emt 0:00:01]} Be5 {[%emt 0:00:01]} 29. Qg5 {[%emt 0:00:03]} Bf6 {[%emt 0:00:09]} 30. Qf4 {[%emt 0:00:09]} Bxh4 {[%emt 0:00:03]} 31. Rc2 {[%emt 0:00:04]} Rfc8 {[%emt 0:00:04]} 32. Rfc1 {[%emt 0:00:06]} Rxc2 {[%emt 0:00:04]} 33. Rxc2 {[%emt 0:00:01]} Qg5 {[%emt 0:00:16]} 34. Rc7+ {[%emt 0:00:05]} Kh6 {[%emt 0:00:05]} 35. Rxb7 {[%emt 0:00:14]} Qxf4 {[%emt 0:00:02]} 36. exf4 {[%emt 0:00:01]} Re8 {[%emt 0:00:03]} 37. Kf1 {[%emt 0:00:02]} e3 {[%emt 0:00:11]} 38. Ke2 {[%emt 0:00:03]} Bg3 {[%emt 0:00:02]} 39. Rxa7 {[%emt 0:00:02]} Bxf4 {[%emt 0:00:03]} 40. Ra6 {[%emt 0:00:02]} Kg5 {[%emt 0:00:04]} 41. d6 {[%emt 0:00:03]} Rd8 {[%emt 0:00:04]} 42. Bd3 {[%emt 0:00:16]} h4 {[%emt 0:00:19]} 43. b4 {[%emt 0:00:07]} Kg4 {[%emt 0:00:03]} 44. d7 {[%emt 0:00:03]} Kg5 {[%emt 0:00:09]} 45. Bb5 {[%emt 0:00:13]} Kh5 {[%emt 0:00:23]} 46. Rc6 {[%emt 0:00:04]} Bg5 {[%emt 0:00:04]} 47. Rc8 {[%emt 0:00:04]} Kg4 {[%emt 0:00:03]} 48. Rxd8 {[%emt 0:00:05]} Bxd8 {[%emt 0:00:02]} 49. Kxe3 {[%emt 0:00:01]} Kg3 {[%emt 0:00:02]} 50. Bc6 {[%emt 0:00:02]} g5 {[%emt 0:00:01]} 51. a4 {[%emt 0:00:04]} f4+ {[%emt 0:00:02]} 52. Ke2 {[%emt 0:00:02]} h3 {[%emt 0:00:07]} 53. gxh3 {[%emt 0:00:02]} Kxh3 {[%emt 0:00:02]} 54. a5 {[%emt 0:00:05]} g4 {[%emt 0:00:02]} 55. a6 {[%emt 0:00:02]} f3+ {[%emt 0:00:02]} 56. Kf2 {[%emt 0:00:02]} Bb6+ {[%emt 0:00:19]} 57. Kf1 {[%emt 0:00:02]} Kh2 {[%emt 0:00:10]} 58. a7 {[%emt 0:00:04]} g3 {[%emt 0:00:01]} 59. Bxf3 {[%emt 0:00:02]} g2+ {[%emt 0:00:15]} 60. Bxg2 {[%emt 0:00:02]} Bxa7 {[%emt 0:00:03]} 61. d8=Q {[%emt 0:00:03]} 1-0

[Event "Queens Festival Europe 2022"]
[Site "Tornelo"]
[Date "2022.06.19"]
[Round "10.2"]
[White "Gueci, Tea"]
[Black "Head, Louise"]
[Result "1-0"]
[ECO "B12"]
[WhiteElo "2248"]
[BlackElo "2025"]
[Annotator "TA"]
[PlyCount "101"]
[EventDate "2022.06.19"]
[EventType "swiss"]
[EventCountry "NET"]
[SourceTitle "playchess.com"]
[Source "ChessBase"]
[SourceQuality "1"]
[TimeControl "180+2"]

{[%evp 9,101,0,0,0,13,6,14,15,11,10,23,18,29,18,202,0,84,31,34,-27,-23,-83,-65,-132,-89,-124,-127,-137,-104,-111,-91,-152,-149,-154,-124,-131,171,174,531,457,897,711,1445,1400,1933,1917,29986,29987,29987,29988,29989,29989,29993,29990,29990,29991,29993,29994,29997,29994,29994,29984,29980,29981,29988,5798,29990,6207,4902,2223,5493,5087,29952,9940,29981,29982,29986,29986,29986,29985,29992,29993,29993,29993,29994,29995,29997,29998,29998,29995,29996,29997,29998,29999]} 1. e4 {[%emt 0:00:02]} c6 {[%emt 0:00:04]} 2. d4 {[%emt 0:00:02]} d5 {[%emt 0:00:01]} 3. e5 {[%emt 0:00:02]} c5 {[%emt 0:00:02]} 4. dxc5 {[%emt 0:00:03]} e6 {[%emt 0:00:01]} 5. a3 {[%emt 0:00:01]} Bxc5 {[%emt 0:00:02]} 6. b4 {[%emt 0:00:02] B12: Caro-Kann: Advance Variation.} Bf8 {[%emt 0:00:03]} 7. Bb2 {[%emt 0:00:03]} a5 {[%emt 0:00:04]} 8. b5 {[%emt 0:00:04] The position is equal.} ({Much weaker is} 8. Bb5+ Bd7 9. Bd3 axb4 $15) 8... Nd7 {[%emt 0:00:05]} 9. Nf3 {[%emt 0:00:08]} Bc5 {[%emt 0:00:07] [#]} 10. Bd3 $146 {[%emt 0:00:05]} ({Predecessor:} 10. Qd2 Ne7 11. Bd3 Bb6 12. Qg5 Ng6 13. Qg3 Nc5 14. h4 Nxd3+ 15. cxd3 h5 16. Nbd2 {0-1 (35) Toma,K (2272)-Head,L (2100) London 2019}) 10... Ne7 {[%emt 0:00:04]} 11. O-O {[%emt 0:00:03]} O-O $2 {[%emt 0:00:06] [#]} (11... b6 $11) 12. h4 $2 {[%emt 0:00:10]} (12. Bxh7+ $1 $18 {[%mdl 512]} Kh8 13. Ng5) 12... g6 {[%emt 0:00:09]} (12... Ng6 $11 {keeps the balance.}) 13. h5 {[%emt 0:00:03]} (13. Qc1 $16) 13... Nf5 {[%emt 0:00:01]} (13... gxh5 $2 14. Ng5 h6 15. Qxh5 $18 (15. Nh7 Ng6 $16)) 14. Bxf5 {[%emt 0:00:23]} (14. Qc1 $14) 14... gxf5 $11 {[%emt 0:00:12]} 15. Qd2 {[%emt 0:00:01]} (15. Nc3 $11 {remains equal.}) 15... Kh8 $1 $17 {[%emt 0:00:08]} 16. Ng5 {[%emt 0:00:50]} (16. Nc3 $15) 16... Be7 {[%emt 0:00:23]} 17. f4 {[%emt 0:00:10]} h6 {[%emt 0:00:24]} 18. Nf3 {[%emt 0:00:06][%cal Bg5f3,Bf3d4,Bd4f5][%mdl 32]} Qb6+ {[%emt 0:00:03]} 19. Nd4 {[%emt 0:00:04]} Nc5 {[%emt 0:00:06]} 20. Nc3 {[%emt 0:00:05] Inhibits Na4.} ({Better is} 20. a4) 20... a4 $1 {[%emt 0:00:09]} 21. Rae1 {[%emt 0:00:06]} Bd7 {[%emt 0:00:03]} 22. Kh1 {[%emt 0:00:13][%cal Od4f5] [#] And now Nxf5! would win.} Rg8 $2 {[%emt 0:00:01][%mdl 8192] [#]} (22... Qd8 $1 $17 {keeps the pressure on.} 23. Nxd5 Bh4) 23. Nxf5 $1 $18 {[%emt 0:00:21][%mdl 512] White leaves nothing to chance now.} exf5 {[%emt 0:00:11]} (23... Qd8) (23... Bxb5 24. Nxd5) 24. e6 $1 {[%emt 0:00:01]} d4 {[%emt 0:00:11]} (24... Qd8 $142) 25. Nd5 {[%emt 0:00:13]} Ne4 {[%emt 0:00:12]} 26. Rxe4 {[%emt 0:00:04]} fxe4 {[%emt 0:00:05]} 27. Nxb6 {[%emt 0:00:05]} Bxe6 {[%emt 0:00:04]} 28. Qxd4+ {[%emt 0:00:03]} f6 {[%emt 0:00:10]} 29. Qxe4 {[%emt 0:00:08]} Rg4 {[%emt 0:00:10]} 30. Nxa8 {[%emt 0:00:09]} Bc5 {[%emt 0:00:03]} 31. Bd4 {[%emt 0:00:02]} Rh4+ {[%emt 0:00:04]} 32. Kg1 {[%emt 0:00:02]} Bd5 {[%emt 0:00:04]} 33. Qe8+ {[%emt 0:00:03]} Kg7 {[%emt 0:00:04]} 34. Bxc5 {[%emt 0:00:00]} Rg4 {[%emt 0:00:02]} 35. Qg6+ {[%emt 0:00:02]} Rxg6 {[%emt 0:00:02]} 36. hxg6 {[%emt 0:00:00]} Kxg6 {[%emt 0:00:02]} 37. Nc7 {[%emt 0:00:00]} (37. f5+ $142 Kf7 38. Rf4 h5 39. Rxa4 Kg7 40. Nc7 Ba2 41. Ra7 h4 42. Rxb7) 37... Bc4 {[%emt 0:00:01]} 38. Rf3 {[%emt 0:00:04]} (38. f5+ $142 Kh7 39. Rf4 Bg8 40. Rxa4 Bf7 41. Ra7 Bg6 42. Rxb7 Bxf5 43. Ne8+ Bd7 44. Rxd7+ Kg6 45. b6) 38... Kf5 {[%emt 0:00:02]} 39. Rc3 {[%emt 0:00:02]} Bf7 {[%emt 0:00:03]} 40. Be7 {[%emt 0:00:02]} h5 {[%emt 0:00:04]} 41. g3 {[%emt 0:00:03]} (41. Kf2 $142 Ke4 42. Bxf6 Kf5 43. Be5 h4 44. Bd6 Ke4 45. Re3+ Kd4 46. Be5+ Kc5 47. Rc3+ Bc4 48. f5) 41... h4 {[%emt 0:00:02]} 42. gxh4 {[%emt 0:00:02] White mates.} Kxf4 {[%emt 0:00:02]} 43. Kf2 {[%emt 0:00:02]} Kf5 {[%emt 0:00:01]} 44. b6 {[%emt 0:00:02]} Ke5 {[%emt 0:00:03]} 45. Rc5+ {[%emt 0:00:02]} Kd4 {[%emt 0:00:02]} 46. h5 {[%emt 0:00:00]} f5 {[%emt 0:00:03]} 47. h6 {[%emt 0:00:02]} Bg6 {[%emt 0:00:03]} 48. Ne6+ {[%emt 0:00:03]} Ke4 {[%emt 0:00:02]} 49. Nf8 {[%emt 0:00:01]} Be8 {[%emt 0:00:04]} 50. h7 {[%emt 0:00:02]} f4 {[%emt 0:00:02]} 51. h8=Q {[%emt 0:00:02] Weighted Error Value: White=0.26 (precise) /Black=0.61} 1-0

[Event "Queens Festival Europe 2022"]
[Site "Tornelo"]
[Date "2022.06.19"]
[Round "10.2"]
[White "Mammadova, Aysel"]
[Black "Deak-Sala, Emilia"]
[Result "1-0"]
[ECO "B22"]
[WhiteElo "1893"]
[BlackElo "1883"]
[Annotator "NA RC"]
[PlyCount "79"]
[EventDate "2022.06.19"]
[EventType "swiss"]
[EventCountry "NET"]
[SourceTitle "playchess.com"]
[Source "ChessBase"]
[SourceQuality "1"]
[TimeControl "180+2"]

1. e4 {[%emt 0:00:02]} c5 {[%emt 0:00:09]} 2. c3 {[%emt 0:00:03]} Nf6 {[%emt 0:00:02]} 3. e5 {[%emt 0:00:03]} Nd5 {[%emt 0:00:02]} 4. d4 {[%emt 0:00:02]} cxd4 {[%emt 0:00:01]} 5. Nf3 {[%emt 0:00:02]} Nc6 {[%emt 0:00:06]} 6. cxd4 {[%emt 0:00:03]} d6 {[%emt 0:00:02]} 7. Bc4 {[%emt 0:00:02]} Nb6 {[%emt 0:00:02]} 8. Bb5 {[%emt 0:00:02]} d5 {[%emt 0:00:17]} 9. O-O {[%emt 0:00:03]} Bg4 {[%emt 0:00:03]} 10. Be3 {[%emt 0:00:06]} e6 {[%emt 0:00:02]} 11. Nbd2 {[%emt 0:00:03]} Be7 {[%emt 0:00:03]} 12. Rc1 {[%emt 0:00:02]} Rc8 {[%emt 0:00:04]} 13. a3 {[%emt 0:00:06]} O-O {[%emt 0:00:02]} 14. Bxc6 {[%emt 0:00:02]} bxc6 {[%emt 0:00:03]} 15. b4 {[%emt 0:00:01]} Qd7 {[%emt 0:00:37]} 16. h3 {[%emt 0:00:04]} Bh5 {[%emt 0:00:04]} 17. Qb3 {[%emt 0:00:05]} Bxf3 {[%emt 0:00:12]} 18. Nxf3 {[%emt 0:00:03]} Nc4 {[%emt 0:00:01]} 19. Nd2 {[%emt 0:00:02]} Nxd2 {[%emt 0:00:05]} 20. Bxd2 {[%emt 0:00:05]} Qb7 {[%emt 0:00:04]} 21. Rc3 {[%emt 0:00:10]} f6 {[%emt 0:00:25]} 22. exf6 {[%emt 0:00:16]} Bxf6 {[%emt 0:00:01]} 23. Be3 {[%emt 0:00:15]} e5 {[%emt 0:00:15]} 24. dxe5 {[%emt 0:00:10]} Bxe5 {[%emt 0:00:02]} 25. Rc2 {[%emt 0:00:04]} Kh8 {[%emt 0:00:12]} 26. Rfc1 {[%emt 0:00:09]} Qd7 {[%emt 0:00:29]} 27. Qd3 {[%emt 0:00:15]} d4 {[%emt 0:00:14]} 28. Bd2 {[%emt 0:00:18]} Qf7 {[%emt 0:00:04]} 29. Be1 {[%emt 0:00:04]} Qf6 {[%emt 0:00:02]} 30. Qe4 {[%emt 0:00:07]} a5 {[%emt 0:00:11]} 31. Rxc6 {[%emt 0:00:04]} Rxc6 {[%emt 0:00:02]} 32. Rxc6 {[%emt 0:00:02]} Qg5 {[%emt 0:00:02]} 33. Re6 {[%emt 0:00:11]} Bf4 {[%emt 0:00:04]} 34. g3 {[%emt 0:00:06]} Bc7 {[%emt 0:00:03]} 35. Re8 {[%emt 0:00:03]} Qf6 {[%emt 0:00:03]} 36. Rxf8+ {[%emt 0:00:03]} Qxf8 {[%emt 0:00:01]} 37. Qxd4 {[%emt 0:00:02]} axb4 {[%emt 0:00:02]} 38. Bxb4 {[%emt 0:00:04]} Qe8 {[%emt 0:00:01]} 39. Qe3 {[%emt 0:00:07]} h6 {[%emt 0:00:02]} 40. Qxe8+ {[%emt 0:00:04]} 1-0